bitfinex-derivatives/quotes_SOLF0:USTF0_20260215
["timestamp","ask_amount","ask_price","bid_price","bid_amount"]
[1771147297274,11.73616332,90.276,90.231,11.74013723]
[1771147298975,11.73616332,90.269,90.221,9.9799]
[1771147299773,9.975,90.266,90.221,9.9799]
[1771147305473,11.73616332,90.269,90.221,9.9799]
[1771147305474,11.73616332,90.269,90.221,19.95902769]
[1771147306077,11.73616332,90.269,90.222,9.97912769]
[1771147308274,9.9748,90.268,90.222,9.97912769]
[1771147308479,19.84813718,90.268,90.222,9.97912769]
[1771147308884,9.9752,90.265,90.222,9.97912769]
[1771147309176,9.87333718,90.264,90.222,9.97912769]
[1771147314395,9.9754,90.263,90.222,9.97912769]
[1771147315595,19.84873718,90.263,90.222,9.97912769]
[1771147315791,9.87333718,90.262,90.222,9.97912769]
[1771147316395,9.87333718,90.255,90.21,9.97912769]
[1771147317699,9.9764,90.254,90.21,9.97912769]
[1771147318601,9.87333718,90.255,90.213,9.97912769]
[1771147319702,9.87333718,90.255,90.214,9.9806]
[1771147319898,9.87333718,90.255,90.214,19.95972769]
[1771147320405,9.87333718,90.255,90.215,9.97912769]
[1771147320698,9.9749,90.267,90.219,9.9801]
[1771147320903,9.87333718,90.275,90.231,9.97912769]
[1771147322706,9.9748,90.268,90.231,9.97912769]
[1771147322898,9.87333718,90.289,90.24,3.93478049]
[1771147323100,9.87333718,90.289,90.241,9.97912769]
[1771147324002,9.974,90.275,90.235,9.9784]
[1771147325406,9.974,90.275,90.235,19.95752769]
[1771147325602,8.34217928,90.31,90.207,88.42]
[1771147325603,8.34217928,90.308,90.24,3.93478049]
[1771147325807,9.87333718,90.299,90.241,9.97912769]
[1771147326611,9.87333718,90.286,90.245,9.9772]
[1771147327907,33.24,90.323,90.216,88.42]
[1771147327908,9.87333718,90.316,90.261,9.97912769]
[1771147328112,9.87333718,90.316,90.271,9.97912769]
[1771147328307,9.87333718,90.316,90.202,188.5155]
[1771147328308,9.87333718,90.299,90.245,9.97912769]
[1771147329811,9.87333718,90.298,90.246,9.9771]
[1771147330414,9.87333718,90.298,90.246,19.95622769]
[1771147330614,9.87333718,90.288,90.238,9.978]
[1771147330913,9.87333718,90.288,90.233,9.97912769]
[1771147331113,9.87333718,90.288,90.24,3.92773408]
[1771147331313,9.87333718,90.288,90.241,9.97912769]
[1771147331514,3.92773408,90.28,90.23,3.92773408]
[1771147331720,9.87333718,90.279,90.226,9.97912769]
[1771147332017,9.87333718,90.277,90.226,9.97912769]
[1771147333420,9.87333718,90.277,90.228,10.11904795]
[1771147333617,9.87333718,90.277,90.231,10.11904795]
[1771147334721,9.87333718,90.277,90.235,10.11904795]
[1771147336321,9.6834373,90.293,90.251,10.11904795]
[1771147337120,9.6834373,90.308,90.26,3.92773408]
[1771147337420,9.6834373,90.308,90.25,3.92773408]
[1771147337615,9.6834373,90.306,90.251,10.11904795]
[1771147338420,9.9709,90.303,90.262,10.11904795]
[1771147338615,9.6834373,90.306,90.262,10.11904795]
[1771147339314,9.9707,90.305,90.263,9.9752]
[1771147339516,9.6834373,90.304,90.262,10.11904795]
[1771147340323,9.6834373,90.304,90.262,20.09434795]
[1771147341422,3.92773408,90.31,90.265,10.11904795]
[1771147341628,9.6834373,90.334,90.281,10.11904795]
[1771147341823,9.6834373,90.334,90.29,3.92773408]
[1771147342022,9.6834373,90.334,90.293,9.9719]
[1771147342320,9.967,90.339,90.3,3.92773408]
[1771147343429,233.04105267,90.342,90.294,10.11904795]
[1771147343430,9.9676,90.333,90.294,10.11904795]
[1771147345225,9.6834373,90.338,90.3,3.92773408]
[1771147345424,9.6834373,90.338,90.294,10.11904795]
[1771147345727,9.9686,90.324,90.282,9.9732]
[1771147345928,9.6834373,90.338,90.283,10.11904795]
[1771147346126,9.6834373,90.338,90.291,10.11904795]
[1771147346734,9.9672,90.337,90.291,20.09124795]
[1771147347129,9.9672,90.337,90.292,10.11904795]
[1771147347736,9.6834373,90.354,90.31,3.92773408]
[1771147347937,9.6834373,90.354,90.309,10.11904795]
[1771147348130,9.6834373,90.354,90.311,10.11904795]
[1771147352041,9.6834373,90.354,90.312,20.08894795]
[1771147353540,9.6834373,90.354,90.313,10.11904795]
[1771147355741,9.9654,90.353,90.313,10.11904795]
[1771147356342,9.9654,90.353,90.314,9.9697]
[1771147356538,8.33913551,90.39,90.32,14.04678203]
[1771147356539,9.6834373,90.369,90.32,14.04678203]
[1771147356847,9.6834373,90.369,90.321,10.11904795]
[1771147357236,9.6834373,90.362,90.321,10.11904795]
[1771147359241,9.6834373,90.356,90.31,3.92773408]
[1771147359641,9.6834373,90.356,90.311,10.11904795]
[1771147360743,9.6834373,90.349,90.298,10.11904795]
[1771147361446,9.6834373,90.349,90.276,88.34]
[1771147361447,9.9665,90.343,90.301,10.11904795]
[1771147362746,9.9665,90.343,90.302,9.9709]
[1771147365453,216.50076333,90.79,90.29,9.9722]
[1771147365454,8.97352199,90.335,90.29,9.9722]
[1771147366550,8.97352199,90.335,90.295,9.15501363]
[1771147367850,9.9675,90.334,90.295,9.15501363]
[1771147369947,9.9675,90.334,90.297,9.15501363]
[1771147370347,9.9675,90.334,90.264,88.72]
[1771147370348,8.97352199,90.349,90.31,3.92773408]
[1771147371448,8.97352199,90.363,90.321,9.15501363]
[1771147372149,9.9653,90.354,90.321,9.15501363]
[1771147375548,9.9668,90.341,90.3,9.15501363]
[1771147375755,8.97352199,90.34,90.29,13.08274771]
[1771147376058,8.97352199,90.34,90.291,9.15501363]
[1771147376852,9.9674,90.335,90.291,19.12711363]
[1771147377954,9.9674,90.335,90.292,9.15501363]
[1771147378949,8.97352199,90.329,90.281,9.9732]
[1771147379857,9.9686,90.324,90.281,9.9732]
[1771147380060,8.97352199,90.319,90.215,33.26]
[1771147380268,8.97352199,90.295,90.24,3.92773408]
[1771147380562,8.97352199,90.289,90.241,9.15501363]
[1771147380858,3.92773408,90.31,90.261,9.15501363]
[1771147381061,13.80036139,90.362,90.213,106.24]
[1771147381062,8.97352199,90.319,90.28,3.92773408]
[1771147381461,8.97352199,90.319,90.281,9.9733]
[1771147381662,9.9682,90.328,90.282,9.15501363]
[1771147382265,9.9689,90.322,90.282,9.15501363]
[1771147385066,9.9697,90.314,90.282,9.15501363]
[1771147385470,9.9697,90.314,90.27,3.92773408]
[1771147386370,9.9697,90.314,90.271,9.15501363]
[1771147388470,8.97352199,90.317,90.271,9.15501363]
[1771147389771,9.9696,90.315,90.272,9.9742]
[1771147389973,8.97352199,90.331,90.281,9.15501363]
[1771147390468,8.97352199,90.331,90.29,3.92773408]
[1771147390773,3.92773408,90.32,90.271,9.15501363]
[1771147390973,3.92773408,90.3,90.257,9.15501363]
[1771147391366,9.9714,90.298,90.257,9.15501363]
[1771147391573,8.97352199,90.309,90.261,9.15501363]
[1771147392878,9.9707,90.305,90.263,9.9752]
[1771147395874,9.9707,90.305,90.263,18.7238638]
[1771147398381,9.9707,90.305,90.264,8.7486638]
[1771147399180,8.97352199,90.309,90.264,8.7486638]
[1771147399181,9.9715,90.298,90.264,8.7486638]
[1771147399571,3.92554961,90.3,90.251,8.7486638]
[1771147399774,9.17059445,90.299,90.251,8.7486638]
[1771147400080,9.17059445,90.299,90.229,88.36]
[1771147400081,3.92554961,90.29,90.235,8.7486638]
[1771147400283,9.17059445,90.299,90.241,8.7486638]
[1771147401886,9.9726,90.288,90.248,8.7486638]
[1771147402782,9.9731,90.283,90.24,13.90324961]
[1771147403578,9.17059445,90.315,90.27,12.67421341]
[1771147403782,9.17059445,90.315,90.271,8.7486638]
[1771147404680,9.9711,90.302,90.26,3.92554961]
[1771147405883,9.17059445,90.343,90.28,3.92554961]
[1771147406085,9.17059445,90.339,90.29,3.92554961]
[1771147406685,9.17059445,90.359,90.3,3.92554961]
[1771147406884,9.17059445,90.359,90.31,3.92554961]
[1771147408893,19.13539445,90.359,90.313,9.9697]
[1771147409890,9.17059445,90.347,90.301,8.7486638]
[1771147410090,9.17059445,90.347,90.29,3.92554961]
[1771147410292,9.17059445,90.347,90.291,8.7486638]
[1771147410490,9.9671,90.338,90.3,12.67421341]
[1771147410689,9.17059445,90.347,90.29,3.92554961]
[1771147411796,9.9678,90.331,90.29,13.89784961]
[1771147412187,9.17059445,90.333,90.28,3.92554961]
[1771147412391,9.17059445,90.316,90.26,3.92554961]
[1771147413792,9.9708,90.304,90.26,3.92554961]
[1771147413993,9.9708,90.304,90.27,3.92554961]
[1771147414192,9.9708,90.304,90.26,12.67421341]
[1771147414394,9.9708,90.304,90.261,8.7486638]
[1771147415694,9.9717,90.296,90.261,8.7486638]
[1771147415899,9.9717,90.296,90.25,3.92554961]
[1771147416593,9.9717,90.296,90.25,12.67421341]
[1771147416793,9.9717,90.296,90.251,8.7486638]
[1771147417596,9.17059445,90.289,90.24,3.92554961]
[1771147417898,9.17059445,90.289,90.236,8.7486638]
[1771147418099,9.17059445,90.289,90.24,3.92554961]
[1771147418303,9.9727,90.287,90.241,8.7486638]
[1771147419400,9.9735,90.28,90.241,8.7486638]
[1771147419592,9.17059445,90.289,90.24,3.92554961]
[1771147419798,9.17059445,90.289,90.23,3.92554961]
[1771147419997,3.92554961,90.28,90.23,3.92554961]
[1771147420196,9.17059445,90.27,90.227,8.7486638]
[1771147420395,9.17059445,90.269,90.213,8.7486638]
[1771147420594,9.9748,90.268,90.213,8.7486638]
[1771147421196,9.9748,90.268,90.22,3.92554961]
[1771147421896,9.9755,90.262,90.22,3.92554961]
[1771147422201,9.9755,90.262,90.216,9.9804]
[1771147423504,9.9755,90.262,90.22,12.39264427]
[1771147424098,8.20657648,90.257,90.21,3.92554961]
[1771147424297,3.92554961,90.25,90.205,8.46709466]
[1771147424604,8.20657648,90.249,90.205,8.46709466]
[1771147425604,8.20657648,90.263,90.211,8.46709466]
[1771147425998,18.18237648,90.259,90.211,8.46709466]
[1771147426306,8.20657648,90.258,90.211,8.46709466]
[1771147426702,8.20657648,90.248,90.197,8.46709466]
[1771147427808,9.9776,90.243,90.197,8.46709466]
[1771147428604,8.20657648,90.239,90.183,8.46709466]
[1771147429812,9.9795,90.226,90.183,8.46709466]
[1771147430106,8.20657648,90.239,90.191,8.46709466]
[1771147430709,8.20657648,90.239,90.177,107.2]
[1771147430710,8.20657648,90.253,90.201,8.46709466]
[1771147430910,8.20657648,90.253,90.21,3.92554961]
[1771147431612,9.9775,90.243,90.201,8.46709466]
[1771147432208,9.9775,90.243,90.19,3.92554961]
[1771147432209,8.20657648,90.242,90.19,3.92554961]
[1771147432810,18.18447648,90.24,90.192,9.9832]
[1771147433109,8.20657648,90.24,90.193,8.46709466]
[1771147433710,8.20657648,90.24,90.198,9.9824]
[1771147435109,9.9771,90.248,90.201,8.46709466]
[1771147435910,8.20657648,90.247,90.201,8.46709466]
[1771147438311,8.20657648,90.243,90.201,8.46709466]
[1771147438511,8.20657648,90.243,90.19,12.39264427]
[1771147439614,18.18507648,90.234,90.193,9.983]
[1771147440717,9.9778,90.241,90.201,8.46709466]
[1771147440916,8.20657648,90.251,90.21,3.92554961]
[1771147441617,9.9778,90.24,90.201,8.46709466]
[1771147445922,9.9772,90.247,90.203,8.46709466]
[1771147446423,8.20657648,90.251,90.21,3.92554961]
[1771147447318,9.9758,90.259,90.22,3.92554961]
[1771147447722,18.18237648,90.259,90.22,3.92554961]
[1771147447923,8.20657648,90.258,90.22,3.92554961]
[1771147448624,9.9761,90.257,90.216,9.9804]
[1771147448822,8.20657648,90.271,90.221,8.46709466]
[1771147449625,9.9757,90.26,90.222,9.9797]
[1771147449923,8.20657648,90.259,90.21,3.92554961]
[1771147450522,8.20657648,90.259,90.21,12.39264427]
[1771147450723,9.9762,90.255,90.212,9.9809]
[1771147451521,9.975,90.266,90.222,8.46709466]
[1771147451722,8.20657648,90.289,90.24,3.92554961]
[1771147451924,8.20657648,90.289,90.25,12.39264427]
[1771147452732,9.9728,90.286,90.25,8.46709466]
[1771147452930,9.9728,90.286,90.24,3.92715754]
[1771147455727,7.88090885,90.303,90.26,3.92715754]
[1771147456129,9.9712,90.301,90.26,3.92715754]
[1771147456328,9.9712,90.301,90.253,9.9764]
[1771147456329,17.85210885,90.301,90.253,9.9764]
[1771147456525,7.88090885,90.3,90.253,9.9764]
[1771147456728,7.88090885,90.3,90.26,3.92715754]
[1771147457733,9.9717,90.296,90.26,3.92715754]
[1771147457928,7.88090885,90.295,90.251,8.42375619]
[1771147458335,7.88090885,90.295,90.26,3.92715754]
[1771147465846,7.88090885,90.295,90.253,8.42375619]
[1771147467549,7.88090885,90.295,90.256,8.42375619]
[1771147467939,8.33492588,90.323,90.27,3.92715754]
[1771147467940,7.88090885,90.304,90.27,3.92715754]
[1771147468250,7.88090885,90.318,90.27,12.35091373]
[1771147468542,9.9694,90.317,90.281,8.42375619]
[1771147470244,7.88090885,90.299,90.249,8.42375619]
[1771147471742,9.9719,90.295,90.25,18.40045619]
[1771147473145,9.9719,90.295,90.25,22.32761373]
[1771147476949,3.92715754,90.32,90.261,8.42375619]
[1771147477153,7.88090885,90.325,90.281,8.42375619]
[1771147477350,7.88090885,90.339,90.29,12.35091373]
[1771147478554,9.9684,90.326,90.29,12.35091373]
[1771147479248,9.9684,90.326,90.29,3.92715754]
[1771147479454,7.88090885,90.339,90.3,3.92715754]
[1771147479653,7.88090885,90.359,90.31,3.92715754]
[1771147480856,9.9663,90.345,90.31,3.92715754]
[1771147481047,9.9663,90.345,90.301,8.42375619]
[1771147481850,17.84720885,90.345,90.301,8.42375619]
[1771147482054,9.967,90.339,90.301,8.42375619]
[1771147482755,9.9676,90.334,90.3,3.92715754]
[1771147482955,18.48887144,90.334,90.292,9.9721]
[1771147483754,8.52127144,90.334,90.3,3.92715754]
[1771147488260,8.52127144,90.334,90.293,8.43794496]
[1771147493661,9.9677,90.332,90.293,8.43794496]
[1771147498366,7.71885263,90.326,90.27,3.92715754]
[1771147498565,7.71885263,90.309,90.253,8.43794496]
[1771147499169,17.68905263,90.309,90.263,8.43794496]
[1771147499371,7.71885263,90.308,90.263,8.43794496]
[1771147500566,7.71885263,90.308,90.266,8.43794496]
[1771147500770,7.71885263,90.32,90.271,8.43794496]
[1771147501776,9.9693,90.318,90.276,9.9739]
[1771147502471,9.9693,90.318,90.271,8.43794496]
[1771147502472,7.71885263,90.309,90.257,8.43794496]
[1771147502769,33.26,90.336,90.198,33.26]
[1771147502770,7.71885263,90.299,90.244,8.43794496]
[1771147503375,7.71885263,90.313,90.271,8.43794496]
[1771147503574,7.71885263,90.326,90.271,8.43794496]
[1771147503769,7.71885263,90.326,90.281,8.43794496]
[1771147504975,17.68725263,90.326,90.284,9.9729]
[1771147506676,9.9673,90.336,90.3,3.92715754]
[1771147508977,9.9679,90.33,90.3,3.92715754]
[1771147509179,7.71885263,90.329,90.279,8.43794496]
[1771147509377,7.71885263,90.329,90.27,3.92715754]
[1771147509781,7.71885263,90.309,90.265,8.43794496]
[1771147510880,9.9711,90.301,90.265,8.43794496]
[1771147515186,8.35979477,90.324,90.281,8.25706358]
[1771147516789,9.9688,90.322,90.281,8.25706358]
[1771147517385,8.35979477,90.321,90.281,8.25706358]
[1771147518685,8.35979477,90.314,90.271,9.9744]
[1771147518889,8.35979477,90.309,90.253,96.61706358]
[1771147519082,8.35979477,90.309,90.254,8.25706358]
[1771147519489,8.35979477,90.309,90.261,8.25706358]
[1771147519798,9.9707,90.305,90.262,8.25706358]
[1771147520990,9.9707,90.305,90.264,9.9751]
[1771147522091,8.35979477,90.301,90.262,8.25706358]
[1771147522490,9.9721,90.292,90.256,9.976]
[1771147523796,9.9721,90.292,90.256,18.23306358]
[1771147524498,9.9721,90.292,90.256,8.25706358]
[1771147525196,9.9713,90.299,90.257,9.9759]
[1771147525397,9.9713,90.299,90.258,8.25706358]
[1771147527399,9.9706,90.306,90.261,8.25706358]
[1771147528790,9.9706,90.306,90.263,8.25706358]
[1771147531200,9.9706,90.306,90.265,8.25706358]
[1771147531892,9.9697,90.314,90.275,8.25706358]
[1771147532792,9.9697,90.314,90.276,9.9738]
[1771147533702,9.9697,90.314,90.276,18.23086358]
[1771147534002,9.9697,90.314,90.277,8.25706358]
[1771147535003,9.9689,90.322,90.281,8.25706358]
[1771147536797,9.9689,90.322,90.281,18.23036358]
[1771147539403,18.32869477,90.322,90.281,18.23036358]
[1771147540407,8.35979477,90.312,90.27,9.9744]
[1771147541714,8.35979477,90.309,90.27,9.9744]
[1771147543412,9.9694,90.317,90.273,7.98042578]
[1771147543612,3.92531589,90.33,90.273,7.98042578]
[1771147543820,7.90010739,90.334,90.281,7.98042578]
[1771147544713,9.9685,90.325,90.283,9.9731]
[1771147545212,17.86860739,90.325,90.283,9.9731]
[1771147545618,7.90010739,90.324,90.283,9.9731]
[1771147546422,7.90010739,90.343,90.291,7.98042578]
[1771147546714,16.28163292,90.342,90.291,7.98042578]
[1771147546921,7.90010739,90.342,90.291,7.98042578]
[1771147547917,9.9668,90.34,90.294,9.9718]
[1771147548116,9.9668,90.34,90.295,7.98042578]
[1771147550419,17.86690739,90.34,90.295,7.98042578]
[1771147552021,9.9673,90.336,90.295,7.98042578]
[1771147555922,9.9673,90.336,90.297,7.98042578]
[1771147557127,9.9662,90.346,90.301,7.98042578]
[1771147557526,9.9662,90.346,90.302,9.971]
[1771147557726,9.9662,90.346,90.303,7.98042578]
[1771147557921,33.26,90.37,90.303,7.98042578]
[1771147558224,7.90010739,90.368,90.321,7.98042578]
[1771147559527,9.9644,90.362,90.321,7.98042578]
[1771147560428,17.86450739,90.362,90.321,7.98042578]
[1771147560623,10.31544278,90.4,90.31,3.92531589]
[1771147560624,7.90010739,90.356,90.31,9.9701]
[1771147560928,7.90010739,90.349,90.31,9.9701]
[1771147561329,7.90010739,90.344,90.304,7.98042578]
[1771147561718,7.90010739,90.342,90.29,13.89761589]
[1771147561925,7.90010739,90.329,90.276,7.98042578]
[1771147562231,3.92531589,90.32,90.276,7.98042578]
[1771147562529,3.92531589,90.33,90.28,7.98042578]
[1771147562930,7.90010739,90.335,90.291,7.98042578]
[1771147563128,9.9672,90.337,90.291,7.98042578]
[1771147564131,9.9661,90.346,90.301,7.98042578]
[1771147564422,7.90010739,90.345,90.29,3.92531589]
[1771147564628,7.90010739,90.339,90.287,7.98042578]
[1771147565324,7.90010739,90.333,90.287,7.98042578]
[1771147565524,7.90010739,90.329,90.287,7.98042578]
[1771147573629,7.77502971,90.327,90.287,7.98042578]
[1771147573829,7.77502971,90.327,90.276,9.9738]
[1771147574031,7.77502971,90.327,90.276,17.66946847]
[1771147574829,7.77502971,90.321,90.276,17.66946847]
[1771147575029,10.31544278,90.36,90.276,17.66946847]
[1771147575030,7.77502971,90.319,90.276,7.69566847]
[1771147575232,7.77502971,90.299,90.25,11.62025868]
[1771147575435,7.77502971,90.299,90.251,7.69566847]
[1771147576732,9.9715,90.298,90.256,9.976]
[1771147578231,7.77502971,90.299,90.262,7.69566847]
[1771147578431,7.77502971,90.312,90.262,7.69566847]
[1771147579136,9.9709,90.303,90.262,7.69566847]
[1771147581634,33.26,90.337,90.25,3.92459021]
[1771147581635,8.37190197,90.394,90.296,19.9432]
[1771147581847,45.23362051,90.379,90.32,3.92459021]
[1771147583745,45.26946696,90.377,90.325,9.9684]
[1771147584640,45.26946696,90.377,90.31,88.36]
[1771147584641,45.26946696,90.377,90.34,3.92459021]
[1771147585249,45.26946696,90.377,90.33,13.89239021]
[1771147587648,45.26946696,90.377,90.34,3.92459021]
[1771147587848,45.26946696,90.377,90.33,13.89239021]
[1771147588349,45.26946696,90.377,90.34,3.92459021]
[1771147591842,45.26946696,90.377,90.35,3.92459021]
[1771147600361,45.26946696,90.377,90.34,3.92459021]
[1771147606668,45.26946696,90.377,90.341,9.9666]
[1771147610064,45.26946696,90.377,90.34,3.92459021]
[1771147610269,158.7,90.413,90.35,3.92459021]
[1771147610270,45.30672329,90.388,90.35,3.92459021]
[1771147610771,45.30672329,90.388,90.34,3.92459021]
[1771147611865,45.36201751,90.377,90.34,3.92459021]
[1771147621080,45.36201751,90.377,90.35,3.92459021]
[1771147621979,45.36201751,90.377,90.34,3.92459021]
[1771147624075,45.4638846,90.371,90.32,3.92459021]
[1771147624275,45.4638846,90.359,90.275,19.948]
[1771147624481,45.4638846,90.359,90.32,3.92459021]
[1771147624675,45.4638846,90.359,90.264,88.3]
[1771147624676,45.4638846,90.359,90.33,3.92459021]
[1771147626280,45.4638846,90.359,90.282,19.9464]
[1771147626281,45.4638846,90.359,90.32,13.89359021]
[1771147627283,45.4638846,90.359,90.327,9.9682]
[1771147628472,45.4638846,90.359,90.33,3.92459021]
[1771147630188,45.4638846,90.359,90.327,9.9682]
[1771147635090,45.4638846,90.359,90.334,9.9674]
[1771147635283,3.91973664,90.36,90.3,3.91973664]
[1771147635486,43.32230218,90.339,90.28,3.91973664]
[1771147635981,43.32230218,90.336,90.288,9.9725]
[1771147637286,43.32230218,90.336,90.294,9.9718]
[1771147641587,43.32230218,90.336,90.287,9.9726]
[1771147642996,43.32339742,90.319,90.278,9.9736]
[1771147648890,53.29259742,90.319,90.268,9.9747]
[1771147649196,43.37221653,90.299,90.254,105.46]
[1771147650795,43.37221653,90.299,90.259,9.9757]
[1771147653102,43.37221653,90.299,90.25,9.9767]
[1771147654807,43.37213103,90.297,90.25,9.9767]
[1771147655703,9.9717,90.296,90.25,9.9767]
[1771147655903,43.03507096,90.295,90.25,9.9767]
[1771147656109,43.03507096,90.295,90.243,9.9775]
[1771147656304,43.0353168,90.289,90.243,9.9775]
[1771147656807,53.0077168,90.289,90.23,3.91973664]
[1771147657908,53.0077168,90.289,90.235,9.9783]
[1771147658405,43.04567627,90.279,90.227,9.9792]
[1771147659508,43.04567627,90.279,90.23,3.91973664]
[1771147659707,43.13986094,90.276,90.227,9.9792]
[1771147661101,43.30052423,90.274,90.227,9.9792]
[1771147662512,43.30052423,90.274,90.224,107.6]
[1771147662513,9.9746,90.27,90.224,107.6]
[1771147662707,43.3017756,90.269,90.224,107.6]
[1771147664409,43.3017756,90.269,90.23,3.91973664]
[1771147664812,43.3017756,90.269,90.24,3.91973664]
[1771147665408,43.3017756,90.269,90.23,3.91973664]
[1771147667410,43.3017756,90.269,90.231,9.9788]
[1771147671314,43.3017756,90.269,90.232,118.92]
[1771147671509,43.48830432,90.282,90.232,118.92]
[1771147671717,43.48830432,90.282,90.25,3.91973664]
[1771147672711,43.48830432,90.282,90.243,9.9774]
[1771147686126,43.48830432,90.282,90.24,3.91973664]
[1771147686329,43.38659736,90.295,90.24,3.91973664]
[1771147687227,43.37825055,90.293,90.249,9.9768]
[1771147687729,43.37825055,90.293,90.25,3.91973664]
[1771147688731,43.37825055,90.293,90.252,9.9765]
[1771147690032,43.37825055,90.293,90.25,3.91973664]
[1771147690228,43.37825055,90.293,90.244,9.9773]
[1771147692233,43.37825055,90.293,90.24,3.91973664]
[1771147692234,43.37825055,90.293,90.249,9.9768]
[1771147692829,43.37825055,90.293,90.25,3.91973664]
[1771147696441,43.37825055,90.293,90.251,9.9766]
[1771147698144,43.32738856,90.329,90.27,3.92583037]
[1771147698348,43.32738856,90.327,90.27,3.92583037]
[1771147698943,43.32738856,90.319,90.28,3.92583037]
[1771147701352,43.32738856,90.319,90.27,3.92583037]
[1771147703046,43.29095451,90.317,90.27,3.92583037]
[1771147706848,43.26625978,90.315,90.27,3.92583037]
[1771147707348,43.26016464,90.312,90.27,3.92583037]
[1771147707549,43.26016464,90.309,90.25,3.92583037]
[1771147707754,43.26016464,90.299,90.24,3.92583037]
[1771147708355,43.25890889,90.289,90.245,9.9773]
[1771147713254,43.26614408,90.287,90.236,9.9782]
[1771147714253,3.92583037,90.28,90.236,9.9782]
[1771147714455,3.92583037,90.28,90.23,88.36]
[1771147714456,43.26493408,90.279,90.23,88.36]
[1771147715862,43.21159946,90.277,90.23,88.36]
[1771147716463,43.21159946,90.277,90.23,92.28583037]
[1771147717162,43.21159946,90.277,90.24,3.92583037]
[1771147721361,43.25257583,90.269,90.212,20.35475123]
[1771147721569,43.25257583,90.239,90.194,299.64946218]
[1771147721759,43.25257583,90.239,90.195,9.9828]
[1771147721960,43.25257583,90.25,90.21,3.92583037]
[1771147722656,43.25257583,90.25,90.211,9.981]
[1771147726968,43.27444409,90.263,90.22,3.92583037]
[1771147730466,43.27444409,90.263,90.218,134.2403]
[1771147730467,43.2700311,90.274,90.24,3.92583037]
[1771147749575,43.29747635,90.297,90.25,3.92583037]
[1771147752880,43.29747635,90.297,90.251,9.9766]
[1771147753588,43.29381688,90.294,90.244,9.9773]
[1771147762687,43.29381688,90.294,90.25,13.90352552]
[1771147766694,43.29381688,90.294,90.25,3.92682552]
[1771147766888,43.29381688,90.294,90.26,3.92682552]
[1771147768494,43.29381688,90.294,90.225,20.35475123]
[1771147768700,43.29381688,90.294,90.24,3.92682552]
[1771147769290,43.2736594,90.261,90.207,20.35475123]
[1771147769497,43.2736594,90.261,90.2,3.92682552]
[1771147769697,43.2736594,90.259,90.21,3.92682552]
[1771147770806,43.2736594,90.259,90.213,9.9808]
[1771147774008,43.2736594,90.259,90.21,3.92682552]
[1771147775811,42.95056211,90.255,90.21,3.92682552]
[1771147776210,3.92682552,90.26,90.188,123.12]
[1771147776211,42.95037506,90.249,90.2,3.92682552]
[1771147777699,42.95037506,90.249,90.201,9.9821]
[1771147781615,42.95037506,90.249,90.21,3.92682552]
[1771147786012,42.95037506,90.249,90.211,128.3]
[1771147790317,43.0591566,90.262,90.22,3.92682552]
[1771147790513,43.0591566,90.274,90.24,3.92682552]
[1771147790816,43.0591566,90.274,90.24,113.10682552]
[1771147793818,43.0591566,90.274,90.25,3.92682552]
[1771147795819,43.0591566,90.274,90.24,113.10682552]
[1771147799622,43.0591566,90.274,90.25,3.92682552]
[1771147801714,43.1117981,90.285,90.25,3.92682552]
[1771147801915,43.1117981,90.285,90.26,3.92682552]
[1771147802718,43.1117981,90.285,90.25,3.92682552]
[1771147803320,43.02974708,90.309,90.27,3.92682552]
[1771147803527,43.02974708,90.309,90.28,3.92682552]
[1771147803824,43.02974708,90.309,90.27,92.30682552]
[1771147804325,43.02974708,90.309,90.25,3.92682552]
[1771147805030,43.02974708,90.309,90.243,122.22]
[1771147805419,42.90576953,90.293,90.244,9.9774]
[1771147808030,42.90576953,90.293,90.25,13.90352552]
[1771147810738,42.90576953,90.293,90.25,3.92682552]
[1771147811135,42.90576953,90.293,90.205,20.35475123]
[1771147811136,42.93025554,90.279,90.22,3.92682552]
[1771147812635,42.93025554,90.279,90.209,134.82]
[1771147812636,42.93170203,90.269,90.21,3.92682552]
[1771147813036,42.93170203,90.259,90.204,134.78]
[1771147814337,42.93170203,90.259,90.21,3.92682552]
[1771147814739,42.86822625,90.256,90.21,3.92682552]
[1771147815541,42.851782,90.254,90.21,3.92682552]
[1771147818843,42.851782,90.254,90.21,3.92983046]
[1771147823540,42.851782,90.254,90.204,134.78]
[1771147823743,42.76071063,90.243,90.204,134.78]
[1771147823945,42.76071063,90.243,90.194,9.9829]
[1771147824138,42.76071063,90.243,90.188,20.35475123]
[1771147824139,42.76071063,90.239,90.187,136.98]
[1771147824340,42.7608882,90.227,90.187,136.98]
[1771147824538,3.92983046,90.22,90.16,3.92983046]
[1771147824845,42.7608882,90.219,90.169,137.3]